{"text_format":"3","workbook":"xlsx","n_sheets":3,"sheets":["Tarefas","Vista Mensal","Vista Semanal"],"not_rendered":{"images":4,"defined_names":16},"read":"whole","date_system":"1900"}

{"sheet":"Tarefas","index":0,"n_rows":15,"n_cols":3,"rows_kept":15}
[null,"VISTA MENSAL","VISTA SEMANAL"]
[null," TAREFAS"]
[null,"DESCRIÇÃO","DATA PARA CONCLUSÃO"]
[null,"Tarefa n.º 1",{"$f":"TODAY()","v":"2022-12-12"}]
[null,"Tarefa n.º 2",{"$f":"TODAY()+15","v":"2022-12-27"}]
[null,"Tarefa n.º 3",{"$f":"TODAY()+30","v":"2023-01-11"}]
[null,"Tarefa n.º 4",{"$f":"TODAY()+45","v":"2023-01-26"}]
[null,"Tarefa n.º 5",{"$f":"TODAY()+60","v":"2023-02-10"}]
[null,"Tarefa n.º 6",{"$f":"TODAY()+75","v":"2023-02-25"}]
[null,"Tarefa n.º 7",{"$f":"TODAY()+90","v":"2023-03-12"}]
[null,"Tarefa n.º 8",{"$f":"TODAY()+105","v":"2023-03-27"}]
[null,"Tarefa n.º 9",{"$f":"TODAY()+115","v":"2023-04-06"}]
[null,"Tarefa n.º 10",{"$f":"TODAY()+130","v":"2023-04-21"}]
[null,"Tarefa n.º 11",{"$f":"TODAY()+145","v":"2023-05-06"}]
[null,"Tarefa n.º 12",{"$f":"TODAY()+160","v":"2023-05-21"}]

{"sheet":"Vista Mensal","index":1,"n_rows":17,"n_cols":8,"rows_kept":17}
[null,"TAREFAS","VISTA SEMANAL"]
[null,"Selecionar Mês:","Introduza o Ano:"]
[null,{"$f":"TEXT(TODAY(),\"mmmm\")","v":"dezembro"},{"$f":"YEAR(TODAY())","v":2022}]
[null," VISTA MENSAL"]
[null,"SEGUNDA-FEIRA","TERÇA-FEIRA","QUARTA-FEIRA","QUINTA-FEIRA","SEXTA-FEIRA","SÁBADO","DOMINGO"]
[null,{"$f":"IF(WEEKDAY(DATEVALUE(\"1 \"&Mês&MêsAno),2)=COLUMN(A$2),1,IF(LEN(A6)>0,A6+1,\"\"))","v":""},"","",1,2,3,4]
[null,{"$f":"IF(LEN(B6)=0,\"\",IF(COUNTIF(Tarefas[DATA PARA CONCLUSÃO],DATE(MêsAno,NúmeroDoMês,B6))>0,\"Tarefa com prazo de conclusão!\",\"\"))","v":""},{"$f":"IF(LEN(C6)=0,\"\",IF(COUNTIF(Tarefas[DATA PARA CONCLUSÃO],DATE(MêsAno,NúmeroDoMês,C6))>0,\"Tarefa com prazo de conclusão!\",\"\"))","v":""},{"$f":"IF(LEN(D6)=0,\"\",IF(COUNTIF(Tarefas[DATA PARA CONCLUSÃO],DATE(MêsAno,NúmeroDoMês,D6))>0,\"Tarefa com prazo de conclusão!\",\"\"))","v":""},{"$f":"IF(LEN(E6)=0,\"\",IF(COUNTIF(Tarefas[DATA PARA CONCLUSÃO],DATE(MêsAno,NúmeroDoMês,E6))>0,\"Tarefa com prazo de conclusão!\",\"\"))","v":""},{"$f":"IF(LEN(F6)=0,\"\",IF(COUNTIF(Tarefas[DATA PARA CONCLUSÃO],DATE(MêsAno,NúmeroDoMês,F6))>0,\"Tarefa com prazo de conclusão!\",\"\"))","v":""},{"$f":"IF(LEN(G6)=0,\"\",IF(COUNTIF(Tarefas[DATA PARA CONCLUSÃO],DATE(MêsAno,NúmeroDoMês,G6))>0,\"Tarefa com prazo de conclusão!\",\"\"))","v":""},{"$f":"IF(LEN(H6)=0,\"\",IF(COUNTIF(Tarefas[DATA PARA CONCLUSÃO],DATE(MêsAno,NúmeroDoMês,H6))>0,\"Tarefa com prazo de conclusão!\",\"\"))","v":""}]
[null,{"$f":"IF(LEN(H6)>0,IF(H6=DAY(DATE(MêsAno,NúmeroDoMês+1,0)),\"\",H6+1),\"\")","v":5},{"$f":"IF(LEN(B8)>0,IF(B8=DAY(DATE(MêsAno,NúmeroDoMês+1,0)),\"\",B8+1),\"\")","v":6},7,8,9,10,11]
[null,{"$f":"IF(LEN(B8)=0,\"\",IF(COUNTIF(Tarefas[DATA PARA CONCLUSÃO],DATE(MêsAno,NúmeroDoMês,B8))>0,\"Tarefa com prazo de conclusão!\",\"\"))","v":""},{"$f":"IF(LEN(C8)=0,\"\",IF(COUNTIF(Tarefas[DATA PARA CONCLUSÃO],DATE(MêsAno,NúmeroDoMês,C8))>0,\"Tarefa com prazo de conclusão!\",\"\"))","v":""},{"$f":"IF(LEN(D8)=0,\"\",IF(COUNTIF(Tarefas[DATA PARA CONCLUSÃO],DATE(MêsAno,NúmeroDoMês,D8))>0,\"Tarefa com prazo de conclusão!\",\"\"))","v":""},{"$f":"IF(LEN(E8)=0,\"\",IF(COUNTIF(Tarefas[DATA PARA CONCLUSÃO],DATE(MêsAno,NúmeroDoMês,E8))>0,\"Tarefa com prazo de conclusão!\",\"\"))","v":""},{"$f":"IF(LEN(F8)=0,\"\",IF(COUNTIF(Tarefas[DATA PARA CONCLUSÃO],DATE(MêsAno,NúmeroDoMês,F8))>0,\"Tarefa com prazo de conclusão!\",\"\"))","v":""},{"$f":"IF(LEN(G8)=0,\"\",IF(COUNTIF(Tarefas[DATA PARA CONCLUSÃO],DATE(MêsAno,NúmeroDoMês,G8))>0,\"Tarefa com prazo de conclusão!\",\"\"))","v":""},{"$f":"IF(LEN(H8)=0,\"\",IF(COUNTIF(Tarefas[DATA PARA CONCLUSÃO],DATE(MêsAno,NúmeroDoMês,H8))>0,\"Tarefa com prazo de conclusão!\",\"\"))","v":""}]
[null,{"$f":"IF(LEN(H8)>0,IF(H8=DAY(DATE(MêsAno,NúmeroDoMês+1,0)),\"\",H8+1),\"\")","v":12},{"$f":"IF(LEN(B10)>0,IF(B10=DAY(DATE(MêsAno,NúmeroDoMês+1,0)),\"\",B10+1),\"\")","v":13},14,15,16,17,18]
[null,{"$f":"IF(LEN(B10)=0,\"\",IF(COUNTIF(Tarefas[DATA PARA CONCLUSÃO],DATE(MêsAno,NúmeroDoMês,B10))>0,\"Tarefa com prazo de conclusão!\",\"\"))","v":"Tarefa com prazo de conclusão!"},{"$f":"IF(LEN(C10)=0,\"\",IF(COUNTIF(Tarefas[DATA PARA CONCLUSÃO],DATE(MêsAno,NúmeroDoMês,C10))>0,\"Tarefa com prazo de conclusão!\",\"\"))","v":""},{"$f":"IF(LEN(D10)=0,\"\",IF(COUNTIF(Tarefas[DATA PARA CONCLUSÃO],DATE(MêsAno,NúmeroDoMês,D10))>0,\"Tarefa com prazo de conclusão!\",\"\"))","v":""},{"$f":"IF(LEN(E10)=0,\"\",IF(COUNTIF(Tarefas[DATA PARA CONCLUSÃO],DATE(MêsAno,NúmeroDoMês,E10))>0,\"Tarefa com prazo de conclusão!\",\"\"))","v":""},{"$f":"IF(LEN(F10)=0,\"\",IF(COUNTIF(Tarefas[DATA PARA CONCLUSÃO],DATE(MêsAno,NúmeroDoMês,F10))>0,\"Tarefa com prazo de conclusão!\",\"\"))","v":""},{"$f":"IF(LEN(G10)=0,\"\",IF(COUNTIF(Tarefas[DATA PARA CONCLUSÃO],DATE(MêsAno,NúmeroDoMês,G10))>0,\"Tarefa com prazo de conclusão!\",\"\"))","v":""},{"$f":"IF(LEN(H10)=0,\"\",IF(COUNTIF(Tarefas[DATA PARA CONCLUSÃO],DATE(MêsAno,NúmeroDoMês,H10))>0,\"Tarefa com prazo de conclusão!\",\"\"))","v":""}]
[null,{"$f":"IF(LEN(H10)>0,IF(H10=DAY(DATE(MêsAno,NúmeroDoMês+1,0)),\"\",H10+1),\"\")","v":19},{"$f":"IF(LEN(B12)>0,IF(B12=DAY(DATE(MêsAno,NúmeroDoMês+1,0)),\"\",B12+1),\"\")","v":20},21,22,23,24,25]
[null,{"$f":"IF(LEN(B12)=0,\"\",IF(COUNTIF(Tarefas[DATA PARA CONCLUSÃO],DATE(MêsAno,NúmeroDoMês,B12))>0,\"Tarefa com prazo de conclusão!\",\"\"))","v":""},{"$f":"IF(LEN(C12)=0,\"\",IF(COUNTIF(Tarefas[DATA PARA CONCLUSÃO],DATE(MêsAno,NúmeroDoMês,C12))>0,\"Tarefa com prazo de conclusão!\",\"\"))","v":""},{"$f":"IF(LEN(D12)=0,\"\",IF(COUNTIF(Tarefas[DATA PARA CONCLUSÃO],DATE(MêsAno,NúmeroDoMês,D12))>0,\"Tarefa com prazo de conclusão!\",\"\"))","v":""},{"$f":"IF(LEN(E12)=0,\"\",IF(COUNTIF(Tarefas[DATA PARA CONCLUSÃO],DATE(MêsAno,NúmeroDoMês,E12))>0,\"Tarefa com prazo de conclusão!\",\"\"))","v":""},{"$f":"IF(LEN(F12)=0,\"\",IF(COUNTIF(Tarefas[DATA PARA CONCLUSÃO],DATE(MêsAno,NúmeroDoMês,F12))>0,\"Tarefa com prazo de conclusão!\",\"\"))","v":""},{"$f":"IF(LEN(G12)=0,\"\",IF(COUNTIF(Tarefas[DATA PARA CONCLUSÃO],DATE(MêsAno,NúmeroDoMês,G12))>0,\"Tarefa com prazo de conclusão!\",\"\"))","v":""},{"$f":"IF(LEN(H12)=0,\"\",IF(COUNTIF(Tarefas[DATA PARA CONCLUSÃO],DATE(MêsAno,NúmeroDoMês,H12))>0,\"Tarefa com prazo de conclusão!\",\"\"))","v":""}]
[null,{"$f":"IF(LEN(H12)>0,IF(H12=DAY(DATE(MêsAno,NúmeroDoMês+1,0)),\"\",H12+1),\"\")","v":26},{"$f":"IF(LEN(B14)>0,IF(B14=DAY(DATE(MêsAno,NúmeroDoMês+1,0)),\"\",B14+1),\"\")","v":27},28,29,30,31,""]
[null,{"$f":"IF(LEN(B14)=0,\"\",IF(COUNTIF(Tarefas[DATA PARA CONCLUSÃO],DATE(MêsAno,NúmeroDoMês,B14))>0,\"Tarefa com prazo de conclusão!\",\"\"))","v":""},{"$f":"IF(LEN(C14)=0,\"\",IF(COUNTIF(Tarefas[DATA PARA CONCLUSÃO],DATE(MêsAno,NúmeroDoMês,C14))>0,\"Tarefa com prazo de conclusão!\",\"\"))","v":"Tarefa com prazo de conclusão!"},{"$f":"IF(LEN(D14)=0,\"\",IF(COUNTIF(Tarefas[DATA PARA CONCLUSÃO],DATE(MêsAno,NúmeroDoMês,D14))>0,\"Tarefa com prazo de conclusão!\",\"\"))","v":""},{"$f":"IF(LEN(E14)=0,\"\",IF(COUNTIF(Tarefas[DATA PARA CONCLUSÃO],DATE(MêsAno,NúmeroDoMês,E14))>0,\"Tarefa com prazo de conclusão!\",\"\"))","v":""},{"$f":"IF(LEN(F14)=0,\"\",IF(COUNTIF(Tarefas[DATA PARA CONCLUSÃO],DATE(MêsAno,NúmeroDoMês,F14))>0,\"Tarefa com prazo de conclusão!\",\"\"))","v":""},{"$f":"IF(LEN(G14)=0,\"\",IF(COUNTIF(Tarefas[DATA PARA CONCLUSÃO],DATE(MêsAno,NúmeroDoMês,G14))>0,\"Tarefa com prazo de conclusão!\",\"\"))","v":""},{"$f":"IF(LEN(H14)=0,\"\",IF(COUNTIF(Tarefas[DATA PARA CONCLUSÃO],DATE(MêsAno,NúmeroDoMês,H14))>0,\"Tarefa com prazo de conclusão!\",\"\"))","v":""}]
[null,{"$f":"IF(LEN(H14)>0,IF(H14=DAY(DATE(MêsAno,NúmeroDoMês+1,0)),\"\",H14+1),\"\")","v":""},{"$f":"IF(LEN(B16)>0,IF(B16=DAY(DATE(MêsAno,NúmeroDoMês+1,0)),\"\",B16+1),\"\")","v":""},"","","","",""]
[null,{"$f":"IF(LEN(B16)=0,\"\",IF(COUNTIF(Tarefas[DATA PARA CONCLUSÃO],DATE(MêsAno,NúmeroDoMês,B16))>0,\"Tarefa com prazo de conclusão!\",\"\"))","v":""},{"$f":"IF(LEN(C16)=0,\"\",IF(COUNTIF(Tarefas[DATA PARA CONCLUSÃO],DATE(MêsAno,NúmeroDoMês,C16))>0,\"Tarefa com prazo de conclusão!\",\"\"))","v":""},{"$f":"IF(LEN(D16)=0,\"\",IF(COUNTIF(Tarefas[DATA PARA CONCLUSÃO],DATE(MêsAno,NúmeroDoMês,D16))>0,\"Tarefa com prazo de conclusão!\",\"\"))","v":""},{"$f":"IF(LEN(E16)=0,\"\",IF(COUNTIF(Tarefas[DATA PARA CONCLUSÃO],DATE(MêsAno,NúmeroDoMês,E16))>0,\"Tarefa com prazo de conclusão!\",\"\"))","v":""},{"$f":"IF(LEN(F16)=0,\"\",IF(COUNTIF(Tarefas[DATA PARA CONCLUSÃO],DATE(MêsAno,NúmeroDoMês,F16))>0,\"Tarefa com prazo de conclusão!\",\"\"))","v":""},{"$f":"IF(LEN(G16)=0,\"\",IF(COUNTIF(Tarefas[DATA PARA CONCLUSÃO],DATE(MêsAno,NúmeroDoMês,G16))>0,\"Tarefa com prazo de conclusão!\",\"\"))","v":""},{"$f":"IF(LEN(H16)=0,\"\",IF(COUNTIF(Tarefas[DATA PARA CONCLUSÃO],DATE(MêsAno,NúmeroDoMês,H16))>0,\"Tarefa com prazo de conclusão!\",\"\"))","v":""}]

{"sheet":"Vista Semanal","index":2,"n_rows":17,"n_cols":8,"rows_kept":17}
[null,"TAREFAS","VISTA MENSAL"]
[null,"Selecionar mês:","Introduza o ano:","Selecionar N.º da semana:"]
[null,"setembro",{"$f":"YEAR(TODAY())","v":2022},"Semana 1"]
[null," VISTA SEMANAL"]
[null,{"$f":"IF(WEEKDAY(DATEVALUE(\"1 \"&SemanaMês&SemanaAno),2)=COLUMN(A$2),1,IF(LEN(A5)>0,A5+1,\"\"))","v":""},"","",1,2,3,4]
[null,{"$f":"IF(LEN(H5)>0,IF(H5=ÚltimoDiaDoMês_Semana,\"\",H5+1),\"\")","v":5},{"$f":"IF(LEN(B6)>0,IF(B6=ÚltimoDiaDoMês_Semana,\"\",B6+1),\"\")","v":6},7,8,9,10,11]
[null,{"$f":"IF(LEN(H6)>0,IF(H6=ÚltimoDiaDoMês_Semana,\"\",H6+1),\"\")","v":12},13,14,15,16,17,18]
[null,{"$f":"IF(LEN(H7)>0,IF(H7=ÚltimoDiaDoMês_Semana,\"\",H7+1),\"\")","v":19},20,21,22,23,24,25]
[null,{"$f":"IF(LEN(H8)>0,IF(H8=ÚltimoDiaDoMês_Semana,\"\",H8+1),\"\")","v":26},27,28,29,30,"",""]
[null,{"$f":"IF(LEN(H9)>0,IF(H9=ÚltimoDiaDoMês_Semana,\"\",H9+1),\"\")","v":""},"","","","","",""]
[null,"SEGUNDA-FEIRA","TERÇA-FEIRA","QUARTA-FEIRA","QUINTA-FEIRA","SEXTA-FEIRA","SÁBADO","DOMINGO"]
[null,{"$f":"IF(B14=\"\",IF(AND(ISNUMBER(A12),A12<ÚltimoDiaDoMês_Semana),A12+1,\"\"),IF(B14<=7,\"\",INDEX(SemanaVistaDeMês,Semana,COLUMN(A$2))-7))","v":""},"","","","","",""]
[null,{"$f":"IF(LEN(B12)=0,\"\",IF(COUNTIF(Tarefas[DATA PARA CONCLUSÃO],DATE(SemanaAno,SemanaNúmeroDoMês,B12))>0,\"Tarefa com prazo de conclusão!\",\"\"))","v":""},{"$f":"IF(LEN(C12)=0,\"\",IF(COUNTIF(Tarefas[DATA PARA CONCLUSÃO],DATE(SemanaAno,SemanaNúmeroDoMês,C12))>0,\"Tarefa com prazo de conclusão!\",\"\"))","v":""},{"$f":"IF(LEN(D12)=0,\"\",IF(COUNTIF(Tarefas[DATA PARA CONCLUSÃO],DATE(SemanaAno,SemanaNúmeroDoMês,D12))>0,\"Tarefa com prazo de conclusão!\",\"\"))","v":""},{"$f":"IF(LEN(E12)=0,\"\",IF(COUNTIF(Tarefas[DATA PARA CONCLUSÃO],DATE(SemanaAno,SemanaNúmeroDoMês,E12))>0,\"Tarefa com prazo de conclusão!\",\"\"))","v":""},{"$f":"IF(LEN(F12)=0,\"\",IF(COUNTIF(Tarefas[DATA PARA CONCLUSÃO],DATE(SemanaAno,SemanaNúmeroDoMês,F12))>0,\"Tarefa com prazo de conclusão!\",\"\"))","v":""},{"$f":"IF(LEN(G12)=0,\"\",IF(COUNTIF(Tarefas[DATA PARA CONCLUSÃO],DATE(SemanaAno,SemanaNúmeroDoMês,G12))>0,\"Tarefa com prazo de conclusão!\",\"\"))","v":""},{"$f":"IF(LEN(H12)=0,\"\",IF(COUNTIF(Tarefas[DATA PARA CONCLUSÃO],DATE(SemanaAno,SemanaNúmeroDoMês,H12))>0,\"Tarefa com prazo de conclusão!\",\"\"))","v":""}]
[null,{"$f":"INDEX(SemanaVistaDeMês,Semana,COLUMN(A$2))","v":""},{"$f":"INDEX(SemanaVistaDeMês,Semana,COLUMN(B$2))","v":""},{"$f":"INDEX(SemanaVistaDeMês,Semana,COLUMN(C$2))","v":""},{"$f":"INDEX(SemanaVistaDeMês,Semana,COLUMN(D$2))","v":1},{"$f":"INDEX(SemanaVistaDeMês,Semana,COLUMN(E$2))","v":2},{"$f":"INDEX(SemanaVistaDeMês,Semana,COLUMN(F$2))","v":3},{"$f":"INDEX(SemanaVistaDeMês,Semana,COLUMN(G$2))","v":4}]
[null,{"$f":"IF(LEN(B14)=0,\"\",IF(COUNTIF(Tarefas[DATA PARA CONCLUSÃO],DATE(SemanaAno,SemanaNúmeroDoMês,B14))>0,\"Tarefa com prazo de conclusão!\",\"\"))","v":""},{"$f":"IF(LEN(C14)=0,\"\",IF(COUNTIF(Tarefas[DATA PARA CONCLUSÃO],DATE(SemanaAno,SemanaNúmeroDoMês,C14))>0,\"Tarefa com prazo de conclusão!\",\"\"))","v":""},{"$f":"IF(LEN(D14)=0,\"\",IF(COUNTIF(Tarefas[DATA PARA CONCLUSÃO],DATE(SemanaAno,SemanaNúmeroDoMês,D14))>0,\"Tarefa com prazo de conclusão!\",\"\"))","v":""},{"$f":"IF(LEN(E14)=0,\"\",IF(COUNTIF(Tarefas[DATA PARA CONCLUSÃO],DATE(SemanaAno,SemanaNúmeroDoMês,E14))>0,\"Tarefa com prazo de conclusão!\",\"\"))","v":""},{"$f":"IF(LEN(F14)=0,\"\",IF(COUNTIF(Tarefas[DATA PARA CONCLUSÃO],DATE(SemanaAno,SemanaNúmeroDoMês,F14))>0,\"Tarefa com prazo de conclusão!\",\"\"))","v":""},{"$f":"IF(LEN(G14)=0,\"\",IF(COUNTIF(Tarefas[DATA PARA CONCLUSÃO],DATE(SemanaAno,SemanaNúmeroDoMês,G14))>0,\"Tarefa com prazo de conclusão!\",\"\"))","v":""},{"$f":"IF(LEN(H14)=0,\"\",IF(COUNTIF(Tarefas[DATA PARA CONCLUSÃO],DATE(SemanaAno,SemanaNúmeroDoMês,H14))>0,\"Tarefa com prazo de conclusão!\",\"\"))","v":""}]
[null,{"$f":"IFERROR(IF(B14=\"\",IF(AND(ISNUMBER(A16),A16<ÚltimoDiaDoMês_Semana),A16+1,$H$14+COLUMN(A$2)),IF(B14+7>ÚltimoDiaDoMês_Semana,\"\",INDEX(SemanaVistaDeMês,Semana,COLUMN(A$2))+7)),\"\")","v":5},{"$f":"IFERROR(IF(C14=\"\",IF(AND(ISNUMBER(B16),B16<ÚltimoDiaDoMês_Semana),B16+1,$H$14+COLUMN(B$2)),IF(C14+7>ÚltimoDiaDoMês_Semana,\"\",INDEX(SemanaVistaDeMês,Semana,COLUMN(B$2))+7)),\"\")","v":6},{"$f":"IFERROR(IF(D14=\"\",IF(AND(ISNUMBER(C16),C16<ÚltimoDiaDoMês_Semana),C16+1,$H$14+COLUMN(C$2)),IF(D14+7>ÚltimoDiaDoMês_Semana,\"\",INDEX(SemanaVistaDeMês,Semana,COLUMN(C$2))+7)),\"\")","v":7},{"$f":"IFERROR(IF(E14=\"\",IF(AND(ISNUMBER(D16),D16<ÚltimoDiaDoMês_Semana),D16+1,$H$14+COLUMN(D$2)),IF(E14+7>ÚltimoDiaDoMês_Semana,\"\",INDEX(SemanaVistaDeMês,Semana,COLUMN(D$2))+7)),\"\")","v":8},{"$f":"IFERROR(IF(F14=\"\",IF(AND(ISNUMBER(E16),E16<ÚltimoDiaDoMês_Semana),E16+1,$H$14+COLUMN(E$2)),IF(F14+7>ÚltimoDiaDoMês_Semana,\"\",INDEX(SemanaVistaDeMês,Semana,COLUMN(E$2))+7)),\"\")","v":9},{"$f":"IFERROR(IF(G14=\"\",IF(AND(ISNUMBER(F16),F16<ÚltimoDiaDoMês_Semana),F16+1,$H$14+COLUMN(F$2)),IF(G14+7>ÚltimoDiaDoMês_Semana,\"\",INDEX(SemanaVistaDeMês,Semana,COLUMN(F$2))+7)),\"\")","v":10},{"$f":"IFERROR(IF(H14=\"\",IF(AND(ISNUMBER(G16),G16<ÚltimoDiaDoMês_Semana),G16+1,$H$14+COLUMN(G$2)),IF(H14+7>ÚltimoDiaDoMês_Semana,\"\",INDEX(SemanaVistaDeMês,Semana,COLUMN(G$2))+7)),\"\")","v":11}]
[null,{"$f":"IF(LEN(B16)=0,\"\",IF(COUNTIF(Tarefas[DATA PARA CONCLUSÃO],DATE(SemanaAno,SemanaNúmeroDoMês,B16))>0,\"Tarefa com prazo de conclusão!\",\"\"))","v":""},{"$f":"IF(LEN(C16)=0,\"\",IF(COUNTIF(Tarefas[DATA PARA CONCLUSÃO],DATE(SemanaAno,SemanaNúmeroDoMês,C16))>0,\"Tarefa com prazo de conclusão!\",\"\"))","v":""},{"$f":"IF(LEN(D16)=0,\"\",IF(COUNTIF(Tarefas[DATA PARA CONCLUSÃO],DATE(SemanaAno,SemanaNúmeroDoMês,D16))>0,\"Tarefa com prazo de conclusão!\",\"\"))","v":""},{"$f":"IF(LEN(E16)=0,\"\",IF(COUNTIF(Tarefas[DATA PARA CONCLUSÃO],DATE(SemanaAno,SemanaNúmeroDoMês,E16))>0,\"Tarefa com prazo de conclusão!\",\"\"))","v":""},{"$f":"IF(LEN(F16)=0,\"\",IF(COUNTIF(Tarefas[DATA PARA CONCLUSÃO],DATE(SemanaAno,SemanaNúmeroDoMês,F16))>0,\"Tarefa com prazo de conclusão!\",\"\"))","v":""},{"$f":"IF(LEN(G16)=0,\"\",IF(COUNTIF(Tarefas[DATA PARA CONCLUSÃO],DATE(SemanaAno,SemanaNúmeroDoMês,G16))>0,\"Tarefa com prazo de conclusão!\",\"\"))","v":""},{"$f":"IF(LEN(H16)=0,\"\",IF(COUNTIF(Tarefas[DATA PARA CONCLUSÃO],DATE(SemanaAno,SemanaNúmeroDoMês,H16))>0,\"Tarefa com prazo de conclusão!\",\"\"))","v":""}]